{"text_format":"3","workbook":"xlsx","n_sheets":2,"sheets":["Resumo do Orçamento","Detalhes do Orçamento"],"not_rendered":{"images":1,"defined_names":1},"read":"whole","date_system":"1900"}

{"sheet":"Resumo do Orçamento","index":0,"n_rows":28,"n_cols":7,"rows_kept":28}
[{"$nulls":6}," "]
[]
[null,"ORÇAMENTO DE CASAMENTO TOTAL",{"v":20000,"d":"R$ 20,000"}]
[]
[null,"DESPESAS","Alocação \n%","Orçamento Alocado","Estimativa  \nCustos","Real \nCustos"]
[null,"Recepção",{"v":0.5,"d":"50%"},{"$f":"Orçamento_Total_Casamento*'Resumo do Orçamento'!$C6","v":{"v":10000,"d":"R$ 10,000"}},{"$f":"Tabela_Recepção[[#Totals],[Custos Estimados]]","v":{"v":0,"d":"R$ 0"}},{"$f":"Tabela_Recepção[[#Totals],[Custos Reais]]","v":{"v":0,"d":"R$ 0"}}]
[null,"Vestimenta",{"v":0.1,"d":"10%"},{"$f":"Orçamento_Total_Casamento*'Resumo do Orçamento'!$C7","v":{"v":2000,"d":"R$ 2,000"}},{"$f":"Tabela_Trajes[[#Totals],[Custos Estimados]]","v":{"v":0,"d":"R$ 0"}},{"$f":"Tabela_Trajes[[#Totals],[Custos Reais]]","v":{"v":0,"d":"R$ 0"}}]
[null,"Flores e Decorações",{"v":0.1,"d":"10%"},{"$f":"Orçamento_Total_Casamento*'Resumo do Orçamento'!$C8","v":{"v":2000,"d":"R$ 2,000"}},{"$f":"Table_FloresEDecorações[[#Totals],[Custos Estimados]]","v":{"v":0,"d":"R$ 0"}},{"$f":"Table_FloresEDecorações[[#Totals],[Custos Reais]]","v":{"v":0,"d":"R$ 0"}}]
[null,"Música",{"v":0.1,"d":"10%"},{"$f":"Orçamento_Total_Casamento*'Resumo do Orçamento'!$C9","v":{"v":2000,"d":"R$ 2,000"}},{"$f":"Tabela_Música[[#Totals],[Custos Estimados]]","v":{"v":0,"d":"R$ 0"}},{"$f":"Tabela_Música[[#Totals],[Custos Reais]]","v":{"v":0,"d":"R$ 0"}}]
[null,"Fotografias e Vídeo",{"v":0.1,"d":"10%"},{"$f":"Orçamento_Total_Casamento*'Resumo do Orçamento'!$C10","v":{"v":2000,"d":"R$ 2,000"}},{"$f":"Tabela_FotoEVídeo[[#Totals],[Custos Estimados]]","v":{"v":0,"d":"R$ 0"}},{"$f":"Tabela_FotoEVídeo[[#Totals],[Custos Reais]]","v":{"v":0,"d":"R$ 0"}}]
[null,"Favores e Presentes",{"v":0.03,"d":"3%"},{"$f":"Orçamento_Total_Casamento*'Resumo do Orçamento'!$C11","v":{"v":600,"d":"R$ 600"}},{"$f":"Tabela_FavoresEPresentes[[#Totals],[Custos Estimados]]","v":{"v":0,"d":"R$ 0"}},{"$f":"Tabela_FavoresEPresentes[[#Totals],[Custos Reais]]","v":{"v":0,"d":"R$ 0"}}]
[null,"Cerimônia",{"v":0.02,"d":"2%"},{"$f":"Orçamento_Total_Casamento*'Resumo do Orçamento'!$C12","v":{"v":400,"d":"R$ 400"}},{"$f":"Tabela_Cerimônia[[#Totals],[Custos Estimados]]","v":{"v":0,"d":"R$ 0"}},{"$f":"Tabela_Cerimônia[[#Totals],[Custos Reais]]","v":{"v":0,"d":"R$ 0"}}]
[null,"Papelaria",{"v":0.02,"d":"2%"},{"$f":"Orçamento_Total_Casamento*'Resumo do Orçamento'!$C13","v":{"v":400,"d":"R$ 400"}},{"$f":"Tabela_Papelaria[[#Totals],[Custos Estimados]]","v":{"v":0,"d":"R$ 0"}},{"$f":"Tabela_Papelaria[[#Totals],[Custos Reais]]","v":{"v":0,"d":"R$ 0"}}]
[null,"Alianças de Casamento",{"v":0.02,"d":"2%"},{"$f":"Orçamento_Total_Casamento*'Resumo do Orçamento'!$C14","v":{"v":400,"d":"R$ 400"}},{"$f":"Tabela_AliançasCasamento[[#Totals],[Custos Estimados]]","v":{"v":0,"d":"R$ 0"}},{"$f":"Tabela_AliançasCasamento[[#Totals],[Custos Reais]]","v":{"v":0,"d":"R$ 0"}}]
[null,"Transporte",{"v":0.01,"d":"1%"},{"$f":"Orçamento_Total_Casamento*'Resumo do Orçamento'!$C15","v":{"v":200,"d":"R$ 200"}},{"$f":"Tabela_Transporte[[#Totals],[Custos Estimados]]","v":{"v":0,"d":"R$ 0"}},{"$f":"Tabela_Transporte[[#Totals],[Custos Reais]]","v":{"v":0,"d":"R$ 0"}}]
[null,"Total",{"$f":"SUM(C6:C15)","v":{"v":1,"d":"100%"}},{"$f":"SUM(D6:D15)","v":{"v":20000,"d":"R$ 20,000"}},{"v":0,"d":"R$ 0"},{"v":0,"d":"R$ 0"}]
[]
[null,"CONTRIBUIÇÕES"]
[null,"Fonte de Fundos","Contribuição"]
[null,"Poupança",{"v":10000,"d":"R$ 10,000"}]
[null,"Mae e Pai do Cônjuge/Companheiro 1",{"v":4000,"d":"R$ 4,000"}]
[null,"Avós do Cônjuge/Companheiro 1",{"v":2000,"d":"R$ 2,000"}]
[null,"Mãe e Pai do Cônjuge/Companheiro 2",{"v":4000,"d":"R$ 4,000"}]
[null,"Avós do Cônjuge/Companheiro 2",{"v":4000,"d":"R$ 4,000"}]
[null,"Outras contribuições",{"v":2000,"d":"R$ 2,000"}]
[null,"Total",{"$f":"SUBTOTAL(109,Tabela_Contribuições[Contribuição])","v":{"v":26000,"d":"R$ 26,000"}}]
[]
[null,{"$f":"IF(Tabela_Contribuições[[#Totals],[Contribuição]]<Orçamento_Total_Casamento,\"Diferença para poder compensar\",\"Fundos extras disponíveis\")","v":"Fundos extras disponíveis"},{"$f":"IF(Tabela_Contribuições[[#Totals],[Contribuição]]<Orçamento_Total_Casamento,Orçamento_Total_Casamento-Tabela_Contribuições[[#Totals],[Contribuição]],Tabela_Contribuições[[#Totals],[Contribuição]]-Orçamento_Total_Casamento)","v":{"v":6000,"d":"R$ 6,000"}}]

{"sheet":"Detalhes do Orçamento","index":1,"n_rows":80,"n_cols":4,"rows_kept":80}
[]
[null,"RECEPÇÃO","Custos Estimados","Custos Reais"]
[null,"Local e locações"]
[null,"Comida e serviço"]
[null,"Bebidas"]
[null,"Bolo"]
[null,"Taxas diversas"]
[null,"Total",{"$f":"SUBTOTAL(109,Tabela_Recepção[Custos Estimados])","v":{"v":0,"d":"R$ 0.00"}},{"$f":"SUBTOTAL(109,Tabela_Recepção[Custos Reais])","v":{"v":0,"d":"R$ 0.00"}}]
[]
[null,"VESTIMENTA","Custos Estimados","Custos Reais"]
[null,"Smoking, terno e/ou vestidos"]
[null,"Alterações"]
[null,"Véu e grinalda"]
[null,"Acessórios"]
[null,"Cabelo e maquiagem"]
[null,"Taxas diversas"]
[null,"Total",{"$f":"SUBTOTAL(109,Tabela_Trajes[Custos Estimados])","v":{"v":0,"d":"R$ 0.00"}},{"$f":"SUBTOTAL(109,Tabela_Trajes[Custos Reais])","v":{"v":0,"d":"R$ 0.00"}}]
[]
[null,"FLORES E DECORAÇÕES","Custos Estimados","Custos Reais"]
[null,"Arranjos florais para cerimônia"]
[null,"Botões e Cesta da dama de honra"]
[null,"Almofada dos anéis"]
[null,"Buquês"]
[null,"Flores de lapela"]
[null,"Corpetes"]
[null,"Decoração da recepção"]
[null,"Iluminação"]
[null,"Taxas diversas"]
[null,"Total",{"$f":"SUBTOTAL(109,Table_FloresEDecorações[Custos Estimados])","v":{"v":0,"d":"R$ 0.00"}},{"$f":"SUBTOTAL(109,Table_FloresEDecorações[Custos Reais])","v":{"v":0,"d":"R$ 0.00"}}]
[]
[null,"MÚSICA","Custos Estimados","Custos Reais"]
[null,"Músicos da cerimônia"]
[null,"Músicos da hora do coquetel"]
[null,"Banda da recepção, DJ ou entretenimento"]
[null,"Aluguel de sistema de som ou de pista de dança"]
[null,"Taxas diversas"]
[null,"Total",{"$f":"SUBTOTAL(109,Tabela_Música[Custos Estimados])","v":{"v":0,"d":"R$ 0.00"}},{"$f":"SUBTOTAL(109,Tabela_Música[Custos Reais])","v":{"v":0,"d":"R$ 0.00"}}]
[]
[null,"FOTOGRAFIAS E VÍDEOS","Custos Estimados","Custos Reais"]
[null,"Fotografia"]
[null,"Videografia"]
[null,"Impressões e álbuns adicionais"]
[null,"Taxas diversas"]
[null,"Total",{"$f":"SUBTOTAL(109,Tabela_FotoEVídeo[Custos Estimados])","v":{"v":0,"d":"R$ 0.00"}},{"$f":"SUBTOTAL(109,Tabela_FotoEVídeo[Custos Reais])","v":{"v":0,"d":"R$ 0.00"}}]
[]
[null,"FAVORES E PRESENTES","Custos Estimados","Custos Reais"]
[null,"Presentes de boas-vindas"]
[null,"Presentes de festa"]
[null,"Taxas diversas"]
[null,"Total",{"$f":"SUBTOTAL(109,Tabela_FavoresEPresentes[Custos Estimados])","v":{"v":0,"d":"R$ 0.00"}},{"$f":"SUBTOTAL(109,Tabela_FavoresEPresentes[Custos Reais])","v":{"v":0,"d":"R$ 0.00"}}]
[]
[null,"CERIMÔNIA","Custos Estimados","Custos Reais"]
[null,"Pagamento do local"]
[null,"Pagamento do sacerdote ou doação à igreja"]
[null,"Taxas diversas"]
[null,"Total",{"$f":"SUBTOTAL(109,Tabela_Cerimônia[Custos Estimados])","v":{"v":0,"d":"R$ 0.00"}},{"$f":"SUBTOTAL(109,Tabela_Cerimônia[Custos Reais])","v":{"v":0,"d":"R$ 0.00"}}]
[]
[null,"PAPELARIA","Custos Estimados","Custos Reais"]
[null,"Convites de casamento"]
[null,"Convites e RSVPs"]
[null,"Programas"]
[null,"Assentos e cartões de lugar"]
[null,"Cartões de menu"]
[null,"Notas de agradecimento"]
[null,"Postagem"]
[null,"Taxas diversas"]
[null,"Total",{"$f":"SUBTOTAL(109,Tabela_Papelaria[Custos Estimados])","v":{"v":0,"d":"R$ 0.00"}},{"$f":"SUBTOTAL(109,Tabela_Papelaria[Custos Reais])","v":{"v":0,"d":"R$ 0.00"}}]
[]
[null,"ALIANÇAS DE CASAMENTO","Custos Estimados","Custos Reais"]
[null,"Alianças de casamento"]
[null,"Acessórios do anel"]
[null,"Total",{"$f":"SUBTOTAL(109,Tabela_AliançasCasamento[Custos Estimados])","v":{"v":0,"d":"R$ 0.00"}},{"$f":"SUBTOTAL(109,Tabela_AliançasCasamento[Custos Reais])","v":{"v":0,"d":"R$ 0.00"}}]
[]
[null,"TRANSPORTE","Custos Estimados","Custos Reais"]
[null,"Aluguel de Carro principal"]
[null,"Aluguel de Carro dos convidados"]
[null,"Transportes para convidados de fora da cidade"]
[null,"Estacionamento com manobrista"]
[null,"Taxas diversas"]
[null,"Total",{"$f":"SUBTOTAL(109,Tabela_Transporte[Custos Estimados])","v":{"v":0,"d":"R$ 0.00"}},{"$f":"SUBTOTAL(109,Tabela_Transporte[Custos Reais])","v":{"v":0,"d":"R$ 0.00"}}]